[Event "GER-ch Youth-U18 2022"]
[Site "Willingen"]
[Date "2022.06.06"]
[Round "3.2"]
[White "von Mettenheim, Johannes"]
[Black "Weishaeutel, Moritz"]
[Result "1-0"]
[ECO "D85"]
[WhiteElo "2176"]
[BlackElo "2406"]
[Annotator "TA"]
[PlyCount "121"]
[EventDate "2022.06.05"]
[EventType "swiss"]
[EventRounds "9"]
[EventCountry "GER"]
[SourceTitle "playchess.com"]
[Source "ChessBase"]
[SourceQuality "1"]
[TimeControl "40/4500+30:900+30"]

{[%evp 14,121,2,0,0,0,0,0,0,0,0,0,0,0,14,0,0,-1,0,-15,8,12,0,0,0,0,50,0,38,23,12,-1,91,93,134,115,116,107,121,118,120,120,120,110,115,115,104,95,166,166,164,175,166,143,172,166,182,182,181,177,171,165,239,257,254,252,485,474,379,287,340,373,506,491,623,598,1391,1457,1512,1268,1795,1568,5106,4731,29965,29965,29966,29968,29967,29965,29977,29978,29985,29986,29987,29988,29988,29985,29986,29987,29987,29986,29986,29987,29987,29988,29988,29989,29991,29992]} 1. d4 {[%emt 0:00:00]} Nf6 {[%emt 0:00:00]} 2. c4 {[%emt 0:00:00]} g6 {[%emt 0:00:00]} 3. Nc3 {[%emt 0:00:00]} d5 {[%emt 0:00:00]} 4. cxd5 {[%emt 0:00:00]} Nxd5 {[%emt 0:00:00]} 5. g3 {[%emt 0:00:00]} Bg7 {[%emt 0:00:00]} 6. Bg2 {[%emt 0:00:00]} Nxc3 {[%emt 0:00:00]} 7. bxc3 {[%emt 0:00:00]} c5 {[%emt 0:00:00]} 8. e3 {[%emt 0:00:00][%cal Be2e3,Be3d4][%mdl 32] 8.e3 has lost popularity.} Qa5 {[%emt 0:00:00] D71: Fianchetto Grünfeld: 3 g3 d5 sidelines and 5 cxd5 (without Nf3).} 9. Ne2 {[%emt 0:00:00]} cxd4 {[%emt 0:00:00]} 10. exd4 {[%emt 0:00:00]} O-O {[%emt 0:00:00] The position is equal.} 11. O-O {[%emt 0:00:00]} Nc6 {[%emt 0:00:00]} 12. Qb3 {[%emt 0:00:00]} Bg4 {[%emt 0:01:41]} 13. Nf4 {[%emt 0:00:00]} e5 {[%emt 0:01:35]} 14. dxe5 {[%emt 0:00:47]} Nxe5 {[%emt 0:00:19] [#]} 15. h3 $146 {[%emt 0:09:08]} ({Predecessor:} 15. Ba3 Rfd8 16. Bb4 Qa6 17. Rfe1 Nf3+ 18. Bxf3 Bxf3 19. Re7 Qf6 20. Re3 Qc6 21. Rae1 {0-1 (51) Santagati,A (2271)-Baldauf,M (2423) Vienna 2016}) 15... Bf3 {[%emt 0:03:33]} 16. Rb1 {[%emt 0:00:55]} Rac8 {[%emt 0:12:44]} 17. Bxf3 {[%emt 0:09:28]} Nxf3+ {[%emt 0:00:12]} 18. Kg2 {[%emt 0:00:06] And now Qd5 would win.} Ne5 {[%emt 0:19:40]} ({Resist} 18... Rxc3 19. Qd5 Qxd5 20. Nxd5 $16) ({Don't play} 18... Qxc3 19. Nd5 Ne1+ 20. Rxe1 $1 Qxe1 21. Be3 $16) 19. Nd5 {[%emt 0:20:11] Hoping for Ne7+.} Rfe8 {[%emt 0:09:49] Inhibits Ne7+.} (19... Kh8 $11) 20. Bg5 {[%emt 0:02:24]} (20. Qxb7 $14 Kh8 21. Bf4) 20... Nc6 {[%emt 0:02:36]} 21. Rfd1 {[%emt 0:05:36]} b6 {[%emt 0:02:20]} 22. Qc4 {[%emt 0:01:12]} h6 {[%emt 0:05:00] [#]} (22... Kh8 $11 {keeps the balance.} 23. Bf6 Ne5) 23. Bxh6 $1 $16 {[%emt 0:12:58] White is more active.} Bxh6 {[%emt 0:00:06]} (23... Ne5 24. Qh4) 24. Nf6+ {[%emt 0:00:06]} Kf8 {[%emt 0:00:03] White must now prevent ...Re6.} 25. Nxe8 {[%emt 0:00:13]} Kxe8 {[%emt 0:00:04]} 26. Rd5 {[%emt 0:00:36]} Ne7 {[%emt 0:04:29][%csl LRc3,LRc4,LRd5] [#]} 27. Qxc8+ $1 {[%emt 0:01:36]} ({But not} 27. Rxa5 $6 Rxc4 28. Rxa7 Nc8 $11) 27... Nxc8 {[%emt 0:00:01]} 28. Rxa5 {[%emt 0:00:14]} bxa5 {[%emt 0:00:02]} 29. Rb5 {[%emt 0:08:07]} a4 {[%emt 0:00:08]} 30. Ra5 {[%emt 0:00:36][%mdl 1024] White has strong compensation.} Nb6 {[%emt 0:01:44]} (30... Bf8 $16) 31. Rxa7 $18 {[%emt 0:00:51]} Bf8 {[%emt 0:00:06]} 32. Ra6 {[%emt 0:01:03]} Bc5 {[%emt 0:00:09]} 33. Ra5 {[%emt 0:00:10]} Be7 {[%emt 0:01:46] [#]} 34. c4 $1 {[%emt 0:00:20]} Kd7 {[%emt 0:01:12]} 35. c5 {[%emt 0:01:03]} Nd5 {[%emt 0:00:05]} 36. Rxa4 {[%emt 0:00:43]} Bxc5 {[%emt 0:00:06]} 37. h4 {[%emt 0:02:42]} Kd6 {[%emt 0:00:51]} (37... f5 $142 38. Ra6 Ne7) 38. g4 {[%emt 0:01:09]} Ke5 {[%emt 0:00:40]} 39. Kf3 {[%emt 0:01:45]} Nc3 $2 {[%emt 0:05:15]} (39... Nc7 40. Re4+ Kf6) 40. Ra5 {[%emt 0:05:40]} Ne4 {[%emt 0:00:05]} 41. Ke2 {[%emt 0:00:00]} Kf4 {[%emt 0:00:00]} 42. h5 {[%emt 0:00:00][%cal Oa5c5] Threatens to win with Rxc5!} gxh5 {[%emt 0:00:00]} 43. gxh5 {[%emt 0:00:00][%cal Oa5c5] aiming for Rxc5!} Bf8 {[%emt 0:00:18]} 44. a4 {[%emt 0:00:53]} f5 {[%emt 0:03:38]} 45. Ra8 {[%emt 0:00:29]} Bg7 {[%emt 0:00:30]} 46. Rg8 {[%emt 0:01:04]} Be5 {[%emt 0:01:00]} 47. a5 {[%emt 0:00:39]} Nf6 {[%emt 0:00:43] [#]} 48. a6 $1 {[%emt 0:01:15] Intending a7 and mate.} Nxg8 {[%emt 0:00:08]} (48... Bd4 49. Rd8) 49. a7 {[%emt 0:00:05] White mates.} Nf6 {[%emt 0:00:20]} 50. h6 {[%emt 0:00:55]} Kg5 {[%emt 0:01:13]} 51. a8=Q {[%emt 0:00:09]} Kxh6 {[%emt 0:00:19]} 52. Qa5 {[%emt 0:00:09]} Bf4 {[%emt 0:01:02]} 53. Qxf5 {[%emt 0:00:11]} Nh5 {[%emt 0:00:03]} 54. Kf3 {[%emt 0:00:26]} Bg5 {[%emt 0:00:07]} 55. Ke4 {[%emt 0:01:08]} Nf6+ {[%emt 0:01:18]} 56. Ke5 {[%emt 0:00:07]} Nh5 {[%emt 0:00:07]} 57. Qh3 {[%emt 0:01:17]} Kg6 {[%emt 0:00:08]} 58. Qd3+ {[%emt 0:00:08]} Kh6 {[%emt 0:00:18]} 59. Kf5 {[%emt 0:00:09]} Ng7+ {[%emt 0:01:17]} 60. Kg4 {[%emt 0:00:08]} Nh5 {[%emt 0:00:18]} 61. Qh3 {[%emt 0:00:15] Weighted Error Value: White=0.05 (flawless) /Black=0.34} 1-0

[Event "GER-ch Youth-U18 2022"]
[Site "Willingen"]
[Date "2022.06.06"]
[Round "3.3"]
[White "Koelle, Tobias"]
[Black "Dobrikov, Marco"]
[Result "1/2-1/2"]
[ECO "E71"]
[WhiteElo "2431"]
[BlackElo "2234"]
[Annotator "TA"]
[PlyCount "156"]
[EventDate "2022.06.05"]
[EventType "swiss"]
[EventRounds "9"]
[EventCountry "GER"]
[SourceTitle "playchess.com"]
[Source "ChessBase"]
[SourceQuality "1"]
[TimeControl "40/4500+30:900+30"]

{[%evp 10,156,39,32,45,34,45,46,45,32,53,62,56,53,43,9,14,17,29,0,58,41,98,91,68,0,0,11,26,5,56,0,0,-18,0,-30,-11,-27,-13,-10,-17,-49,-58,-51,-41,-135,-92,-91,-81,-81,-84,-85,-73,-82,-85,-91,-100,-120,-102,-112,-118,-118,-70,-77,-68,-72,-67,-65,-62,-117,-112,-144,-145,-137,-143,-135,-154,-181,-179,-189,-190,-174,-77,-64,-63,-120,-77,-115,-117,-116,-124,-117,-122,-108,-123,-278,-272,-278,-253,-320,-268,-494,-494,-770,-466,-657,-641,-1529,-1370,-1665,-565,-506,-491,-483,-483,-29965,-29966,-29966,-29967,-29967,-29968,-29967,-29968,-29967,-29969,-29966,-29969,-29970,-29970,-29967,-29970,-29970,-29971,-29971,0,0,0,0,0,0,0,0,0,0,0,0,0,0,0]} 1. d4 {[%emt 0:00:00] Stohl,I} Nf6 {[%emt 0:00:00]} 2. c4 {[%emt 0:00:00]} g6 {[%emt 0:00:00]} 3. Nc3 {[%emt 0:00:00]} Bg7 {[%emt 0:00:00]} 4. e4 {[%emt 0:00:00]} d6 {[%emt 0:00:00]} 5. h3 {[%emt 0:00:00]} O-O {[%emt 0:00:00]} 6. Be3 {[%emt 0:00:00]} Nc6 {[%emt 0:00:00] E71: King's Indian: 4 e4 d6 5 h3.} 7. d5 {[%emt 0:00:00]} Ne5 {[%emt 0:00:00]} 8. f4 {[%emt 0:00:00]} Ned7 {[%emt 0:00:00] White is slightly better.} 9. g4 {[%emt 0:00:00]} c6 {[%emt 0:00:00]} 10. Nf3 {[%emt 0:00:00]} cxd5 {[%emt 0:00:00]} 11. cxd5 {[%emt 0:00:00]} b6 {[%emt 0:00:00] [#]} 12. Qc2 $146 {[%emt 0:00:29]} (12. Bg2 $5 {[%cal Rf3d4]}) ({Predecessor:} 12. Nd4 Nc5 13. Qf3 Bb7 14. g5 Nfxe4 15. Nxe4 Bxd5 16. Nf6+ exf6 17. Qxd5 Re8 18. Nc2 fxg5 {1-0 (48) Caruana,F (2822)-Firouzja,A (2723) Wijk aan Zee 2020 CBM 195 Extra [Stohl,I]}) 12... Bb7 {[%emt 0:00:00]} 13. Bg2 {[%emt 0:14:14]} Rc8 {[%emt 0:00:00]} 14. Nd4 {[%emt 0:01:30] Against e6} Nc5 {[%emt 0:00:00]} (14... e6 $11 15. Nc6 (15. dxe6 Nc5 $15) 15... Bxc6 16. dxc6 Rxc6) 15. Nc6 {[%emt 0:03:07]} (15. O-O $5 {[%cal Rd4c6]}) 15... Bxc6 {[%emt 0:00:00]} (15... Qd7 $14) 16. dxc6 $16 {[%emt 0:00:02]} Ne8 {[%emt 0:02:29]} 17. O-O {[%emt 0:04:41] White is more active.} (17. e5 $1 $14) 17... Rxc6 $11 {[%emt 0:03:35]} 18. e5 {[%emt 0:00:42]} Rc8 {[%emt 0:00:33]} 19. Rad1 {[%emt 0:00:25][%mdl 1024] White has compensation.} e6 {[%emt 0:04:40]} ({Black should try} 19... Qd7 $11) 20. Qd2 {[%emt 0:09:28]} (20. Nb5 $1 $14) 20... d5 {[%emt 0:01:49]} 21. g5 {[%emt 0:06:33]} Nc7 {[%emt 0:01:47]} 22. h4 {[%emt 0:04:53][%cal Oh4h5]} (22. b4 $5 {[%cal Rb4c5]} N5a6 23. a3 $11) 22... Qe7 {[%emt 0:01:59]} 23. b4 {[%emt 0:02:51]} Nd7 {[%emt 0:01:34]} (23... Ne4 $5 24. Bxe4 (24. Nxe4 dxe4 25. Bxe4 Rfd8 $11) 24... dxe4 $11) 24. Ne2 {[%emt 0:04:20][%cal Oh4h5]} Nb5 {[%emt 0:09:55][%cal Bc7b5,Bb5a3,Ba3c4,Bc4b2][%mdl 32] White should prevent ...Na3.} 25. Qb2 {[%emt 0:07:48] Prevents Na3.} Rc4 $36 {[%emt 0:00:20][%mdl 2048] Black fights for an advantage.} 26. a3 {[%emt 0:04:30]} Rfc8 {[%emt 0:04:31]} 27. Rd2 {[%emt 0:01:11] Against Rc2} ({White should play} 27. Rc1 $15) 27... a5 {[%emt 0:04:48]} 28. bxa5 {[%emt 0:01:55]} Qxa3 {[%emt 0:00:42]} 29. Qxa3 {[%emt 0:01:17]} Nxa3 {[%emt 0:00:02]} 30. axb6 {[%emt 0:00:29][%cal Og2d5]} Rb4 {[%emt 0:00:08]} 31. Ra2 {[%emt 0:04:32]} Nc4 {[%emt 0:00:28] Pair of Knights!} 32. Bf2 {[%emt 0:02:55]} Bf8 {[%emt 0:04:57]} 33. Rc1 {[%emt 0:03:53]} Nc5 {[%emt 0:01:07]} (33... Ncxb6 34. Rxc8 Nxc8 35. Rc2 $15) 34. Rd1 {[%emt 0:03:23]} Rxb6 {[%emt 0:01:39]} 35. h5 {[%emt 0:01:56]} Rb2 {[%emt 0:00:58]} (35... Rb3 $17 {...Nd3 is the strong threat.} 36. hxg6 hxg6) 36. Rxb2 $15 {[%emt 0:01:03]} Nxb2 {[%emt 0:00:03]} 37. Rb1 {[%emt 0:00:46]} Nc4 {[%emt 0:02:43]} 38. h6 {[%emt 0:00:23]} Be7 {[%emt 0:00:47]} 39. Ra1 {[%emt 0:00:57]} (39. Nc1 $15) 39... Nd3 $1 $17 {[%emt 0:03:07]} 40. Bd4 {[%emt 0:00:55] [#]} Ndxe5 $1 {[%emt 0:04:04][%mdl 512]} 41. fxe5 {[%emt 0:16:31]} ({Much weaker is} 41. Bxe5 Nxe5 42. fxe5 Bxg5 $17) 41... Bxg5 {[%emt 0:15:02]} 42. Kf2 {[%emt 0:00:00]} Bxh6 {[%emt 0:00:00]} 43. Ng1 {[%emt 0:00:00]} Bf4 {[%emt 0:00:00]} 44. Nf3 {[%emt 0:00:00]} g5 {[%emt 0:00:00]} 45. Bh3 {[%emt 0:00:00]} Nb2 {[%emt 0:00:00]} 46. Ne1 {[%emt 0:00:00]} Rb8 {[%emt 0:00:00]} 47. Ra2 {[%emt 0:00:00]} (47. Bf1 $1 $15) 47... Rb3 $1 {[%emt 0:00:00]} 48. Bg4 {[%emt 0:00:00]} Nd3+ {[%emt 0:00:00]} 49. Nxd3 {[%emt 0:00:00]} Rxd3 {[%emt 0:00:00]} 50. Ra4 {[%emt 0:00:00]} Kg7 {[%emt 0:00:00]} 51. Bh5 {[%emt 0:00:00]} Rh3 {[%emt 0:00:00]} 52. Be2 {[%emt 0:02:16]} (52. Bf3 $17 {keeps fighting.}) 52... h5 $19 {[%emt 0:00:00]} 53. Ra7 {[%emt 0:00:52]} g4 {[%emt 0:00:00]} 54. Bb5 {[%emt 0:00:39]} Rf3+ {[%emt 0:00:00]} 55. Ke2 $2 {[%emt 0:00:15]} (55. Kg1) 55... h4 {[%emt 0:00:00]} 56. Bd7 {[%emt 0:00:18]} (56. Bc6 $142 Kg6 57. Ra8) 56... Kg6 {[%emt 0:00:48] White must now prevent ...h3.} 57. Ra8 {[%emt 0:01:31]} (57. Be8 $142 h3 58. Bg1 Bxe5 59. Ra4) 57... Kf5 {[%emt 0:02:16] Strongly threatening ...h3.} 58. Rg8 {[%emt 0:00:57]} Ra3 {[%emt 0:07:05]} 59. Bb5 {[%emt 0:00:15]} Ra2+ {[%emt 0:00:40]} (59... h3 $142 {( -> ...h2)} 60. Bg1 Ra2+ 61. Kd3 Ra1) 60. Kf1 {[%emt 0:00:12][%cal Rb5d3]} Ke4 {[%emt 0:07:07] Inhibits Bd3+.} (60... Rd2 $2 61. Bc3 Rd1+ 62. Ke2 Bxe5 63. Bxe5 $16 (63. Kxd1 Bxc3 64. Be2 g3 $16)) 61. Rxg4 {[%emt 0:00:14]} h3 {[%emt 0:00:04]} ({Inferior is} 61... Kxd4 62. Rxf4+ Kxe5 63. Rxf7 $11) 62. Be2 {[%emt 0:01:59]} (62. Rh4 $19 Kxd4 63. Rxf4+ Ke3 64. Ra4) 62... h2 {[%emt 0:00:14]} 63. Rh4 {[%emt 0:00:00]} Kxd4 {[%emt 0:14:47]} 64. Rxf4+ {[%emt 0:00:01]} Kxe5 {[%emt 0:00:11] KRB-KR} 65. Rh4 {[%emt 0:00:04]} h1=Q+ {[%emt 0:00:05]} 66. Rxh1 {[%emt 0:00:03]} Ra1+ {[%emt 0:00:04]} 67. Kg2 {[%emt 0:00:04]} Rxh1 {[%emt 0:00:03]} 68. Kxh1 {[%emt 0:00:02] KB-K3P} Ke4 {[%emt 0:00:34]} 69. Kg2 {[%emt 0:00:06]} f5 {[%emt 0:00:03]} 70. Kf2 {[%emt 0:00:09]} e5 {[%emt 0:00:12]} 71. Bb5 {[%emt 0:00:43] [#]} d4 $2 {[%emt 0:00:16]} (71... Kf4 $1 {mates} 72. Bc6 d4 73. Ke2 e4 74. Kf2 Ke5 75. Ba4 d3 76. Be8 f4 77. Ke1 f3 78. Bb5 Kf4 79. Bc4 Ke3 80. Bf7 f2+ 81. Kf1 Kd2 82. Bg6 e3 83. Bf5 e2+ 84. Kxf2 e1=Q+ 85. Kf3 Qh4 86. Bg4 {[#]} Qxg4+ $3 {[%mdl 512]} 87. Kxg4 Ke3 88. Kh5 d2 89. Kh6 Kf4 90. Kg7 Kf5 91. Kf7 d1=Q 92. Ke7 Qd4 93. Kf8 Kf6 94. Kg8 Qg4+ 95. Kh8 Qg7#) 72. Ke2 $11 {[%emt 0:00:18] The position is equal.} Kf4 {[%emt 0:00:54]} 73. Kd3 {[%emt 0:00:22]} Kf3 {[%emt 0:02:31]} 74. Bc6+ {[%emt 0:00:50]} Kf2 {[%emt 0:00:50]} 75. Bb5 {[%emt 0:01:12]} f4 {[%emt 0:01:13]} 76. Ke4 {[%emt 0:00:13]} f3 {[%emt 0:00:10]} 77. Ba6 {[%emt 0:00:29]} Kg2 {[%emt 0:02:19]} 78. Kxe5 {[%emt 0:00:10]} f2 {And White is the lucky defender.  Weighted Error Value: White=0.46/Black=0.23 (precise)} 1/2-1/2

[Event "GER-ch Youth-U18 2022"]
[Site "Willingen"]
[Date "2022.06.06"]
[Round "3.4"]
[White "Colbow, Collin"]
[Black "Weihrauch, Jakob"]
[Result "0-1"]
[ECO "B91"]
[WhiteElo "2360"]
[BlackElo "2139"]
[Annotator "TA"]
[PlyCount "86"]
[EventDate "2022.06.05"]
[EventType "swiss"]
[EventRounds "9"]
[EventCountry "GER"]
[SourceTitle "playchess.com"]
[Source "ChessBase"]
[SourceQuality "1"]
[TimeControl "40/4500+30:900+30"]

{[%evp 13,85,13,18,14,37,27,42,36,38,19,15,19,16,4,39,40,47,27,26,-4,0,-8,33,21,34,29,46,43,43,49,40,31,39,-14,-24,-20,-19,-70,-47,-53,-21,-83,-84,-232,-221,-231,-218,-227,-226,-212,-222,-297,-179,-170,-146,-145,-69,-62,-62,-640,-582,-561,-554,-29985,-29986,-29987,-29988,-29994,-29995,-29995,-29996,-29998,-29999,-29999]} 1. e4 {[%emt 0:00:00]} c5 {[%emt 0:00:00]} 2. Nf3 {[%emt 0:00:00]} d6 {[%emt 0:00:00]} 3. d4 {[%emt 0:00:00]} cxd4 {[%emt 0:00:00]} 4. Nxd4 {[%emt 0:00:00]} Nf6 {[%emt 0:00:00]} 5. Nc3 {[%emt 0:00:00]} a6 {[%emt 0:00:00]} 6. g3 {[%emt 0:00:00]} e5 {[%emt 0:00:00]} 7. Nde2 {[%emt 0:00:00]} b5 {[%emt 0:00:00]} 8. Nd5 {[%emt 0:00:00] now scores much better than the old 8.Bg2. B91: Sicilian Najdorf: 6 g3.} Nxd5 {[%emt 0:00:00]} 9. Qxd5 {[%emt 0:00:00]} Ra7 {[%emt 0:00:00]} 10. Be3 {[%emt 0:00:00] [#] White is slightly better.} Rb7 $146 {[%emt 0:00:00]} ({Predecessor:} 10... Be6 11. Qd2 Rd7 12. Nc3 Be7 13. a4 d5 14. Nxd5 f5 15. Bb6 Qc8 16. Nxe7 Qb7 {0-1 (32) Thilakarathne,G (2398)-Smirnov,A (2597) Chess.com INT 2020}) 11. Bg2 {[%emt 0:00:00]} Nd7 {[%emt 0:00:00]} 12. O-O {[%emt 0:07:56]} Be7 {[%emt 0:00:00]} 13. Qd2 {[%emt 0:05:21]} Nb6 {[%emt 0:07:40]} 14. b3 {[%emt 0:02:43]} O-O {[%emt 0:05:11]} 15. Rfc1 {[%emt 0:05:40]} Be6 {[%emt 0:14:56]} 16. Qa5 {[%emt 0:07:52]} Qc7 {[%emt 0:05:34]} 17. Nc3 {[%emt 0:26:50]} Ra8 {[%emt 0:24:47]} 18. a4 {[%emt 0:13:02]} b4 {[%emt 0:02:42]} 19. Na2 {[%emt 0:01:42]} ({Avoid the trap} 19. Qxb4 $2 Nd7 20. Nb5 axb5 $19) 19... Nd5 {[%emt 0:01:03]} 20. Qxc7 {[%emt 0:00:12]} Nxc7 {[%emt 0:00:09]} 21. a5 {[%emt 0:09:54]} d5 {[%emt 0:08:55]} 22. exd5 {[%emt 0:00:37]} Bxd5 {[%emt 0:00:06]} 23. Rd1 {[%emt 0:04:09]} (23. Bf1 $14) 23... Bxg2 $11 {[%emt 0:02:15]} 24. Kxg2 {[%emt 0:00:01] [#] Hoping for Rd7.} Nb5 {[%emt 0:00:15]} 25. Nc1 {[%emt 0:01:06]} ({White should try} 25. Rd2 $11) 25... Rc8 {[%emt 0:00:19]} 26. Nd3 {[%emt 0:00:17]} e4 {[%emt 0:04:54]} 27. Ne1 {[%emt 0:00:56]} (27. Nc5 $1 $11 Bxc5 28. Bxc5) 27... Bf6 $17 {[%emt 0:00:13] Black is more active.} 28. Rac1 {[%emt 0:00:41]} (28. c4 $17 {is a better defense.} bxc3 29. Nc2) 28... Bb2 $19 {[%emt 0:00:40]} 29. c4 {[%emt 0:00:27] [#] aiming for Rc2.} bxc3 {[%emt 0:02:43]} 30. Rc2 {[%emt 0:00:05]} Na3 {[%emt 0:00:56][%csl LRb3,LRc2]} 31. Re2 {[%emt 0:00:02]} Rxb3 {[%emt 0:00:47]} 32. Nc2 {[%emt 0:00:21]} h6 {[%emt 0:01:38]} 33. Rd6 {[%emt 0:00:32]} Nxc2 {[%emt 0:00:58]} 34. Rxc2 {[%emt 0:00:05]} Ba3 {[%emt 0:00:31]} (34... Ra8 $17 35. Bd4 Ra3) 35. Rxa6 $15 {[%emt 0:01:40]} Rb2 $36 {[%emt 0:03:35][%mdl 2048] Black is pushing.} 36. Rxc3 {[%emt 0:00:31][%mdl 8192]} Rxc3 $19 {[%emt 0:00:16]} 37. Ra8+ {[%emt 0:00:03]} Kh7 {[%emt 0:00:40] ( -> ...Rxe3)} 38. a6 {[%emt 0:00:00]} Rxe3 {[%emt 0:01:28] Black mates.} 39. a7 {[%emt 0:00:19]} Ree2 {[%emt 0:00:18]} 40. Re8 {[%emt 0:01:53]} Rxf2+ {[%emt 0:00:05]} 41. Kh3 {[%emt 0:00:00]} f5 {[%emt 0:00:00][%csl Gb2][%cal Rf2h2]} 42. g4 {[%emt 0:00:00]} Rf3+ {[%emt 0:00:00]} 43. Kh4 {[%emt 0:00:00]} Rxh2# {[%emt 0:00:00] Weighted Error Value: White=0.44/Black=0.12 (very precise)} 0-1

[Event "GER-ch Youth-U18 2022"]
[Site "Willingen"]
[Date "2022.06.06"]
[Round "3.5"]
[White "Pubantz, Jan"]
[Black "Haack, Kevin"]
[Result "1-0"]
[ECO "D35"]
[WhiteElo "2265"]
[BlackElo "2176"]
[Annotator "TA"]
[PlyCount "79"]
[EventDate "2022.06.05"]
[EventType "swiss"]
[EventRounds "9"]
[EventCountry "GER"]
[SourceTitle "playchess.com"]
[Source "ChessBase"]
[SourceQuality "1"]
[TimeControl "40/4500+30:900+30"]

{[%evp 20,79,35,29,34,31,62,28,48,33,132,72,187,35,36,33,42,0,22,0,0,0,0,0,0,0,0,-30,-17,-26,-25,-27,41,54,67,45,46,50,37,0,57,14,39,43,39,35,221,224,235,237,237,235,230,230,289,292,5018,4902,2025,733,775,664]} 1. d4 {[%emt 0:00:00]} Nf6 {[%emt 0:00:00]} 2. c4 {[%emt 0:00:00]} e6 {[%emt 0:00:00]} 3. Nc3 {[%emt 0:00:00]} d5 {[%emt 0:00:00]} 4. cxd5 {[%emt 0:00:00]} exd5 {[%emt 0:00:00]} 5. Bg5 {[%emt 0:00:00]} Be7 {[%emt 0:00:00]} 6. e3 {[%emt 0:00:00]} c6 {[%emt 0:00:00]} 7. Bd3 {[%emt 0:00:00]} Nbd7 {[%emt 0:00:00]} 8. h3 {[%emt 0:00:00]} h6 {[%emt 0:00:00]} 9. Bf4 {[%emt 0:00:00]} O-O {[%emt 0:00:00]} 10. Nf3 {[%emt 0:00:00]} Re8 {[%emt 0:00:00]} 11. Qc2 {[%emt 0:00:00]} a5 {[%emt 0:02:06] D36: Queen's Gambit Declined: Exchange Variation: Main line (5 Bg5 c6 6 Qc2).} 12. O-O {[%emt 0:00:00][%cal Oc3b5]} Nf8 {[%emt 0:00:57]} 13. a3 {[%emt 0:00:00] 0x0.000bd5f3ece8dp-1022s more active pieces. The black rooks are badly placed.} Ne6 {[%emt 0:21:08] [#] White has an edge.} 14. Be5 $146 {[%emt 0:03:49]} ({Predecessor:} 14. Bh2 b5 15. Ne5 Qb6 16. Rfc1 Ba6 17. Bf5 Bf8 18. Bg3 c5 19. Nxd5 Qd8 20. Nxf6+ gxf6 {1-0 (27) Bluebaum,M (2642)-Van Foreest,L (2530) Warsaw 2021}) 14... g6 {[%emt 0:07:43] [#]} ({Black should try} 14... Ng5 $14) 15. Ne2 {[%emt 0:30:16]} (15. Bxg6 $142 $1 {[%mdl 512] Hoping for Bd3.} Bd6 (15... fxg6 16. Qxg6+) 16. Bd3 (16. Qf5 Nxd4 17. Qxf6 Qxf6 $15)) 15... Ng7 {[%emt 0:09:37] [#]} (15... Nf8 $16 {was called for.}) 16. Bf4 $2 {[%emt 0:05:12]} ({White must play} 16. Bxg6 $1 $18 {[%mdl 512] Strongly threatening Bd3.} Bd6 17. Bxd6 (17. Bxf7+ Kxf7 18. g4 Bxe5 $11) 17... Qxd6 18. Bd3) 16... h5 $14 {[%emt 0:02:31]} 17. Ng3 {[%emt 0:03:47][%cal Od3g6]} Nd7 {[%emt 0:06:23]} 18. Ne2 {[%emt 0:11:40]} Nf6 {[%emt 0:00:06]} 19. Rab1 {[%emt 0:02:50]} Bf5 {[%emt 0:04:07]} 20. Ne5 {[%emt 0:05:04]} Bd6 {[%emt 0:04:37]} 21. b4 {[%emt 0:04:52]} axb4 {[%emt 0:04:51]} 22. axb4 {[%emt 0:00:08]} Qe7 {[%emt 0:01:32]} 23. Qb3 {[%emt 0:06:13]} Ne4 {[%emt 0:03:32] ...Nd2 is the strong threat.} 24. Rb2 {[%emt 0:02:00] Prevents Nd2.} (24. Qc2 {looks sharper.} Ra3 25. Ra1 Rxa1 26. Rxa1 f6 27. Nxg6 Bxg6 28. b5) 24... f6 {[%emt 0:01:48]} 25. Bxe4 {[%emt 0:03:28]} fxe5 {[%emt 0:03:17]} ({Better is} 25... Bxe4 $11 26. Nd3 Bxf4 27. exf4 Bf5) 26. dxe5 {[%emt 0:03:02]} Bxe5 {[%emt 0:01:03]} 27. Bxe5 {[%emt 0:00:43]} Qxe5 {[%emt 0:02:06]} 28. Bxf5 {[%emt 0:00:54]} Nxf5 {[%emt 0:00:07]} 29. Nf4 {[%emt 0:00:59]} Qf6 {[%emt 0:00:58]} (29... Kh7 $1 $11) 30. Qc2 {[%emt 0:03:16]} Re4 {[%emt 0:01:40]} 31. b5 {[%emt 0:01:16]} Rc4 {[%emt 0:04:52]} 32. Qd2 {[%emt 0:00:02] aiming for bxc6.} Nd6 $2 {[%emt 0:00:58] Loses the game.} (32... Ra7 $14) 33. bxc6 $18 {[%emt 0:00:20]} bxc6 {[%emt 0:00:05][%cal Oc4f4] [#] Threatens to win with ...Rxf4!} 34. Nxd5 {[%emt 0:01:28][%mdl 512]} cxd5 {[%emt 0:00:45]} 35. Qxd5+ {[%emt 0:00:02]} Kg7 {[%emt 0:01:54]} 36. Rb7+ {[%emt 0:01:19]} Kh6 {[%emt 0:02:02]} 37. Rb6 {[%emt 0:00:02][%csl LRa8,LRd6]} Rc2 $2 {[%emt 0:01:28]} (37... Rcc8) 38. Qxa8 {[%emt 0:00:31] White is clearly winning.} Rd2 {[%emt 0:00:55]} 39. Qa5 {[%emt 0:00:41]} Rd3 {[%emt 0:00:43]} 40. Qc5 {[%emt 0:00:54] Weighted Error Value: White=0.22 (precise) /Black=0.43} 1-0